{"text_format":"2","workbook":"xlsx","n_sheets":11,"sheets":["Total","meuble","Cuve","Tuyauterie","Osmolateur","Décante","Electricité","Eclairages","electroAqua","substrat + PVs","Sels+eau"],"not_rendered":{"charts":0,"images":0,"macros":0,"external_links":0,"defined_names":0,"comments":0,"pivot_tables":0},"unopened":[],"bounds":{"document_bytes":16777216,"sheet_cells":100000,"run_cost":"one","rows_first":2000,"rows_last":500,"rows_between":2000,"halvings":0,"cell_chars":16384,"cell_head_chars":4096},"cells_cut":0,"cells_raw":0,"read":"whole","date_system":"1900"}

{"sheet":"Total","index":0,"n_rows":16,"n_cols":11,"rows_kept":16,"cut":false,"hidden":false,"merged":[]}
["Nom","Total",{"$nulls":4},"Dimention","Meuble","Cuve","Reserve","Decante"]
["Meuble",{"$f":"meuble!E25","v":455.99},{"$nulls":4},"L",2000,2000]
["Cuve",{"$f":"Cuve!E25","v":1635},{"$nulls":4},"l",700,700]
["Tuyauterie",{"$f":"Tuyauterie!E25","v":36.4},{"$nulls":4},"H",1000,600]
["Osmolateur",{"$f":"Osmolateur!E25","v":27.74}]
["Décante",{"$f":"Décante!E25","v":156.01}]
["Electricité",{"$f":"Electricité!E7","v":0}]
["Eclairages",{"$f":"Eclairages!E16","v":115.88}]
["ElectroAqua",{"$f":"electroAqua!E25","v":524.98}]
["Substrat + Pvs",{"$f":"'substrat + PVs'!E5","v":1479.28}]
["sels+eau",{"$f":"'Sels+eau'!E3","v":80}]
[]
[]
[]
["Total",{"$f":"SUM(B2:B9)","v":2952},"Prix redsea",6500]
["Total avec pierre",{"$f":"SUM(B2:B11)","v":4511.28},"diff redsea",{"$f":"D15-SUM(B2:B7)","v":4188.86}]

{"sheet":"meuble","index":1,"n_rows":25,"n_cols":8,"rows_kept":25,"cut":false,"hidden":false,"merged":[]}
["Matériels","Ref","PU","Nombre","total","Remarques","Site","Date D'achat"]
["Peinture",null,24.99,1,{"$f":"D2*C2","v":24.99}]
["Contreplaqué marine",null,121,1,{"$f":"D3*C3","v":121},"Medium 16 mm ","entrepot"]
["structue alu",null,310,1,{"$f":"D4*C4","v":310}]
{"$rows_empty":20}
[null,null,null,"Total",{"$f":"SUM(E2:E24)","v":455.99}]

{"sheet":"Cuve","index":2,"n_rows":25,"n_cols":8,"rows_kept":25,"cut":false,"hidden":false,"merged":[]}
["Matériels","Ref","PU","Nombre","total","Remarques","Site","Date D'achat"]
[null,null,1635,1,{"$f":"C2*D2","v":1635}]
{"$rows_empty":22}
[null,null,null,"total",{"$f":"SUM(E2:E24)","v":1635}]

{"sheet":"Tuyauterie","index":3,"n_rows":25,"n_cols":8,"rows_kept":25,"cut":false,"hidden":false,"merged":[]}
["Matériels","Ref","PU","Nombre","total","Remarques","Site","Date D'achat"]
["Joint uniseal® 40mm",null,3.5,2,{"$f":"D2*C2","v":7},null,"Neo3plus"]
["Joint uniseal® 20mm",null,2.75,2,{"$f":"D3*C3","v":5.5},null,"Neo3plus"]
["Coude 90 40mm",null,2.5,4,{"$f":"D4*C4","v":10},null,"aquastore"]
["Vanne 40",null,13.9,1,{"$f":"D5*C5","v":13.9},"Vanne normal 13,9","recifart"]
["Tube 40",null,null,4,{"$f":"D6*C6","v":0},null,"aquastore"]
[null,null,null,0,{"$f":"D7*C7","v":0}]
[null,null,null,0,{"$f":"D8*C8","v":0}]
["tube 32mm",null,null,2,{"$f":"D9*C9","v":0},null,"aquastore"]
["Embout cannelé 32mm",null,null,1,{"$f":"D10*C10","v":0},null,"aquastore"]
["Coude 90 32mm",null,null,3,{"$f":"D11*C11","v":0},null,"aquastore"]
[null,null,null,0,{"$f":"D12*C12","v":0}]
[null,null,null,0,{"$f":"D13*C13","v":0}]
[null,null,null,0,{"$f":"D14*C14","v":0}]
{"$rows_empty":10}
[null,null,null,"Total",{"$f":"SUM(E2:E24)","v":36.4}]

{"sheet":"Osmolateur","index":4,"n_rows":25,"n_cols":8,"rows_kept":25,"cut":false,"hidden":false,"merged":[]}
["Matériels","Ref","PU","Nombre","total","Remarques","Site","Date D'achat"]
["cuve","60cm*40cm*20cm",24.55,1,{"$f":"D2*C2","v":24.55},null,"leroymerlyn"]
["passe paroi",null,null,1,{"$f":"D3*C3","v":0}]
["floatant",null,3.19,1,{"$f":"D4*C4","v":3.19},null,"Ali"]
{"$rows_empty":20}
[null,null,null,"Total",{"$f":"SUM(E2:E24)","v":27.74}]

{"sheet":"Décante","index":5,"n_rows":25,"n_cols":8,"rows_kept":25,"cut":false,"hidden":false,"merged":[]}
["Matériels","Ref","PU","Nombre","total","Remarques","Site","Date D'achat"]
["Ecumeurs","Curve A5",122,1,{"$f":"D2*C2","v":122},"Mini 2X voulume du fabricant","Aliexpress","Fait"]
["pompes remontés",null,16.01,1,{"$f":"D3*C3","v":16.01},"3 et 4 X volumes du bac par heure\nSoit 11L/min","Aliexpress"]
[]
[]
[]
["Décante","fond tech","verre normal bord brut",7.37,1,{"$f":"D7*E7","v":7.37}]
[null,"AV/AR tech","verre normal bord brut",7.9,2,{"$f":"D8*E8","v":15.8}]
[null,"cotés tech","verre normal bord brut",3.77,2,{"$f":"D9*E9","v":7.54}]
[null,"Lame","verre normal bord brut",1.88,4,{"$f":"D10*E10","v":7.52}]
[null,"Colle",null,9.99,2,{"$f":"D11*E11","v":19.98}]
[null,"pistolet ",null,7.5,1,{"$f":"D12*E12","v":7.5}]
[null,"foret 45mm",null,2.5,1,{"$f":"D13*E13","v":2.5}]
[null,"Peinture",null,8,1,{"$f":"D14*E14","v":8}]
[null,"Mousse",null,5.99,3,{"$f":"D15*E15","v":17.97}]
[null,"Bac reserve eau",null,3.9,1,{"$f":"D16*E16","v":3.9}]
{"$rows_empty":8}
[{"$nulls":4},{"$f":"SUM(E2:E24)","v":156.01}]

{"sheet":"Electricité","index":6,"n_rows":7,"n_cols":8,"rows_kept":7,"cut":false,"hidden":false,"merged":[]}
["Matériels","Ref","PU","Nombre","total","Remarques","Site","Date D'achat"]
["Rail DIN",581538,null,null,{"$f":"D2*C2","v":0},"nombre de module \n15 prise + 2 dijoncteur\n+ emplacement Ordinateur","Magasin de bricolage","Fait"]
["disjoncteur",948469,null,null,{"$f":"D3*C3","v":0},null,"Magasin de bricolage","Fait"]
["Prise electrique",1159821,null,null,{"$f":"D4*C4","v":0},null,"Magasin de bricolage","Fait"]
[]
[]
[null,null,null,"Total",{"$f":"SUM(E2:E6)","v":0}]

{"sheet":"Eclairages","index":7,"n_rows":16,"n_cols":8,"rows_kept":16,"cut":false,"hidden":false,"merged":[]}
["Matériels","Ref","PU","Nombre","total","Remarques","Site","Date D'achat"]
["Leds",null,0.1,160,{"$f":"D2*C2","v":16},null,"Aliexpress"]
["Regle aluminium",null,10,2,{"$f":"D3*C3","v":20},null,"Magasin de bricolage"]
["Alimentation 12V",null,23.5,2,{"$f":"D4*C4","v":47},null,"Recupération"]
["PCB",null,1.68,16,{"$f":"D5*C5","v":26.88},null,"SeedStudio"]
["Resistance",null,0.12,50,{"$f":"D6*C6","v":6},null,"Aliexpress"]
{"$rows_empty":9}
[null,null,null,"Total",{"$f":"SUM(E2:E10)","v":115.88}]

{"sheet":"electroAqua","index":8,"n_rows":25,"n_cols":8,"rows_kept":25,"cut":false,"hidden":false,"merged":[]}
["Matériels","Ref","PU","Nombre","total","Remarques","Site","Date D'achat"]
["Pompe de brassage",null,22,2,{"$f":"D2*C2","v":44},"40X le volume => 7200 L","marinehome"]
["Chauffage",null,10.99,2,{"$f":"D3*C3","v":21.98},"2*300w","aquastore"]
["Ecumeur",null,350,1,{"$f":"D4*C4","v":350},null,"marinehome"]
["Pompe de remonté",null,109,1,{"$f":"D5*C5","v":109},null,"aquastore"]
{"$rows_empty":19}
[null,null,null,"Total",{"$f":"SUM(E2:E24)","v":524.98}]

{"sheet":"substrat + PVs","index":9,"n_rows":5,"n_cols":8,"rows_kept":5,"cut":false,"hidden":false,"merged":[]}
[50,"Ref","PU","Nombre","total","Remarques","Site","Date D'achat"]
["Sable","AQUA MEDIC Bali Sand 0,5-1,2mm - 10 kg",29.99,2,{"$f":"D2*C2","v":59.98},null,"Aquastore","Fait"]
["PV",null,24.9,57,{"$f":"D3*C3","v":1419.3},null,"Marinehome","Fait"]
[null,null,null,0,{"$f":"D4*C4","v":0},null,"Marinehome","Fait"]
[null,null,null,"Total",{"$f":"SUM(E2:E4)","v":1479.28}]

{"sheet":"Sels+eau","index":10,"n_rows":3,"n_cols":8,"rows_kept":3,"cut":false,"hidden":false,"merged":[]}
["Matériels","Ref","PU","Nombre","total","Remarques","Site","Date D'achat"]
[null,null,80,1,{"$f":"D2*C2","v":80},"35g/L => 1025 200L=> 7Kg","Marine home","Septembre"]
[null,null,null,"Total",{"$f":"SUM(E2:E2)","v":80}]